[Event "Early-Titled-Tuesday-Blitz-May-28-2024"]
[Site "Chess.com"]
[Date "2024.05.28"]
[Round "7"]
[White "NewBornNow"]
[Black "GeorgiosSouleidis"]
[Result "1-0"]
[WhiteElo "2809"]
[BlackElo "2607"]
[TimeControl "180+1"]
[EndTime "9:17:53 PDT"]
[Termination "NewBornNow won on time"]

1. e4 {[%clk 0:02:58.9]} 1... c5 {[%clk 0:02:59.9]} 2. Nf3 {[%clk 0:02:58.4]}
2... e6 {[%clk 0:03:00.1]} 3. d4 {[%clk 0:02:57.4]} 3... cxd4 {[%clk 0:03:01]}
4. Nxd4 {[%clk 0:02:57.4]} 4... Nf6 {[%clk 0:03:00.5]} 5. Nc3 {[%clk 0:02:56.9]}
5... Nc6 {[%clk 0:03:00.7]} 6. a3 {[%clk 0:02:55.1]} 6... Be7 {[%clk 0:03:00.5]}
7. Be2 {[%clk 0:02:53.4]} 7... O-O {[%clk 0:03:00.6]} 8. f4 {[%clk 0:02:50.4]}
8... d6 {[%clk 0:03:00.6]} 9. Be3 {[%clk 0:02:50]} 9... Qc7 {[%clk 0:02:58.9]}
10. g4 {[%clk 0:02:49.1]} 10... Nxd4 {[%clk 0:02:55.6]} 11. Bxd4 {[%clk
0:02:49.1]} 11... e5 {[%clk 0:02:56.1]} 12. Be3 {[%clk 0:02:49.1]} 12... exf4
{[%clk 0:02:44.8]} 13. Bxf4 {[%clk 0:02:48.7]} 13... Be6 {[%clk 0:02:41.3]} 14.
g5 {[%clk 0:02:46.8]} 14... Nd7 {[%clk 0:02:41.3]} 15. Qd2 {[%clk 0:02:46.8]}
15... Ne5 {[%clk 0:02:40.4]} 16. O-O-O {[%clk 0:02:45.7]} 16... Rac8 {[%clk
0:02:32.7]} 17. Kb1 {[%clk 0:02:45.7]} 17... Rfd8 {[%clk 0:02:29.2]} 18. h4
{[%clk 0:02:41.9]} 18... a6 {[%clk 0:02:26.5]} 19. h5 {[%clk 0:02:41.1]} 19...
Nc4 {[%clk 0:02:16.7]} 20. Bxc4 {[%clk 0:02:40.4]} 20... Qxc4 {[%clk 0:02:17.6]}
21. Nd5 {[%clk 0:02:28.6]} 21... Bxd5 {[%clk 0:02:09.9]} 22. exd5 {[%clk
0:02:28.4]} 22... Bf8 {[%clk 0:01:38.9]} 23. Rh2 {[%clk 0:02:21.9]} 23... Re8
{[%clk 0:01:35.2]} 24. g6 {[%clk 0:01:55]} 24... fxg6 {[%clk 0:01:32.4]} 25.
hxg6 {[%clk 0:01:55.1]} 25... h6 {[%clk 0:01:23.3]} 26. Qf2 {[%clk 0:01:52.5]}
26... Rc7 {[%clk 0:00:59.6]} 27. Rd4 {[%clk 0:01:36.1]} 27... Qc5 {[%clk
0:00:27.5]} 28. Be3 {[%clk 0:01:24]} 28... Qb5 {[%clk 0:00:20]} 29. Qf3 {[%clk
0:01:08.1]} 29... Rce7 {[%clk 0:00:16.9]} 30. Bd2 {[%clk 0:01:01.8]} 30... Qd7
{[%clk 0:00:13.6]} 31. Rf4 {[%clk 0:00:59.4]} 31... b5 {[%clk 0:00:09.8]} 32.
Rf2 {[%clk 0:00:57.5]} 32... Qd8 {[%clk 0:00:05.9]} 33. Rf7 {[%clk 0:00:52.1]}
33... Re5 {[%clk 0:00:01.9]} 34. Bc3 {[%clk 0:00:44]} 34... Rg5 {[%clk 0:00:01]}
35. Rxg7+ {[%clk 0:00:41.6]} 1-0

[Event "Early-Titled-Tuesday-Blitz-May-28-2024"]
[Site "Chess.com"]
[Date "2024.05.28"]
[Round "7"]
[White "Gryffindorac8"]
[Black "DonJuanEGenaro"]
[Result "1-0"]
[WhiteElo "2469"]
[BlackElo "2024"]
[TimeControl "180+1"]
[EndTime "9:17:54 PDT"]
[Termination "Gryffindorac8 won on time"]

1. d4 {[%clk 0:03:00.9]} 1... d5 {[%clk 0:02:58.2]} 2. c4 {[%clk 0:03:00]} 2...
e6 {[%clk 0:02:57.6]} 3. Nf3 {[%clk 0:03:00.1]} 3... c5 {[%clk 0:02:57.2]} 4.
cxd5 {[%clk 0:02:59.8]} 4... exd5 {[%clk 0:02:56.3]} 5. g3 {[%clk 0:03:00.1]}
5... Nc6 {[%clk 0:02:56.1]} 6. Bg2 {[%clk 0:03:00]} 6... Nf6 {[%clk 0:02:51.6]}
7. O-O {[%clk 0:02:59.2]} 7... Be7 {[%clk 0:02:51.6]} 8. Nc3 {[%clk 0:02:58.7]}
8... O-O {[%clk 0:02:49.6]} 9. Bg5 {[%clk 0:02:58.3]} 9... c4 {[%clk 0:02:49.5]}
10. e3 {[%clk 0:02:56.9]} 10... Be6 {[%clk 0:02:40.7]} 11. Nd2 {[%clk
0:02:48.1]} 11... h6 {[%clk 0:02:30.9]} 12. Bxf6 {[%clk 0:02:46.1]} 12... Bxf6
{[%clk 0:02:30.6]} 13. b3 {[%clk 0:02:23]} 13... Qa5 {[%clk 0:01:52.9]} 14. bxc4
{[%clk 0:02:18]} 14... Qxc3 {[%clk 0:01:29.3]} 15. cxd5 {[%clk 0:02:14.1]} 15...
Nxd4 {[%clk 0:01:21.7]} 16. exd4 {[%clk 0:02:07.6]} 16... Bd7 {[%clk 0:01:15.9]}
17. Ne4 {[%clk 0:01:53.7]} 17... Qxd4 {[%clk 0:01:09.9]} 18. Nxf6+ {[%clk
0:01:53.4]} 18... Qxf6 {[%clk 0:01:08.8]} 19. Qb3 {[%clk 0:01:53.3]} 19... b5
{[%clk 0:00:49.4]} 20. Rac1 {[%clk 0:01:46.7]} 20... Rac8 {[%clk 0:00:43]} 21.
Qa3 {[%clk 0:01:40.4]} 21... Qb6 {[%clk 0:00:40.3]} 22. Rxc8 {[%clk 0:01:29.7]}
22... Rxc8 {[%clk 0:00:37.7]} 23. Qe7 {[%clk 0:01:20.4]} 23... Bf5 {[%clk
0:00:14.9]} 24. Qe5 {[%clk 0:01:01.5]} 24... Bd3 {[%clk 0:00:12.9]} 25. Re1
{[%clk 0:00:50.1]} 25... Bg6 {[%clk 0:00:02.6]} 26. h4 {[%clk 0:00:46.5]} 26...
Rc2 {[%clk 0:00:01.9]} 27. Re2 {[%clk 0:00:33]} 27... Rxe2 {[%clk 0:00:01.4]}
28. Qxe2 {[%clk 0:00:32.8]} 28... Qd4 {[%clk 0:00:01.3]} 29. Qe8+ {[%clk
0:00:22.3]} 29... Kh7 {[%clk 0:00:00.9]} 30. Qe7 {[%clk 0:00:22.3]} 1-0

[Event "Early-Titled-Tuesday-Blitz-May-28-2024"]
[Site "Chess.com"]
[Date "2024.05.28"]
[Round "7"]
[White "MikeWizard"]
[Black "ChempionBg"]
[Result "1-0"]
[WhiteElo "2023"]
[BlackElo "2233"]
[TimeControl "180+1"]
[EndTime "9:17:57 PDT"]
[Termination "MikeWizard won on time"]

1. d4 {[%clk 0:03:00.9]} 1... Nf6 {[%clk 0:02:59.1]} 2. c4 {[%clk 0:03:00.9]}
2... g6 {[%clk 0:02:59.2]} 3. Nc3 {[%clk 0:03:00.9]} 3... Bg7 {[%clk 0:02:59.7]}
4. e4 {[%clk 0:03:00.9]} 4... d6 {[%clk 0:02:59.9]} 5. h3 {[%clk 0:03:01.1]}
5... O-O {[%clk 0:03:00]} 6. Be3 {[%clk 0:03:01.2]} 6... e5 {[%clk 0:03:00.1]}
7. d5 {[%clk 0:03:01]} 7... a5 {[%clk 0:03:00.2]} 8. g4 {[%clk 0:03:00.1]} 8...
Na6 {[%clk 0:03:00.4]} 9. Nge2 {[%clk 0:02:58.4]} 9... Nc5 {[%clk 0:02:59.5]}
10. Ng3 {[%clk 0:02:58.2]} 10... Bd7 {[%clk 0:02:55.3]} 11. Bd3 {[%clk
0:02:57.9]} 11... c6 {[%clk 0:02:54.8]} 12. O-O {[%clk 0:02:56.1]} 12... cxd5
{[%clk 0:02:54.7]} 13. cxd5 {[%clk 0:02:55.7]} 13... Qb8 {[%clk 0:02:53.9]} 14.
a4 {[%clk 0:02:54.4]} 14... Nxd3 {[%clk 0:02:46.4]} 15. Qxd3 {[%clk 0:02:53.6]}
15... h5 {[%clk 0:02:47]} 16. f3 {[%clk 0:02:46.9]} 16... hxg4 {[%clk
0:02:33.1]} 17. hxg4 {[%clk 0:02:46.2]} 17... Kh7 {[%clk 0:02:20.8]} 18. Kg2
{[%clk 0:02:45.6]} 18... Rh8 {[%clk 0:02:20.6]} 19. Rh1+ {[%clk 0:02:44.8]}
19... Kg8 {[%clk 0:02:20.9]} 20. Rxh8+ {[%clk 0:02:44.5]} 20... Bxh8 {[%clk
0:02:20]} 21. Rh1 {[%clk 0:02:40.8]} 21... Bg7 {[%clk 0:02:19.4]} 22. Nge2
{[%clk 0:02:35.2]} 22... Qe8 {[%clk 0:02:11.4]} 23. Nb5 {[%clk 0:02:34]} 23...
Bxb5 {[%clk 0:02:07.8]} 24. Qxb5 {[%clk 0:02:33.6]} 24... Qxb5 {[%clk
0:02:06.9]} 25. axb5 {[%clk 0:02:32.7]} 25... Rc8 {[%clk 0:02:07.6]} 26. Rc1
{[%clk 0:02:31.9]} 26... Rxc1 {[%clk 0:02:01.8]} 27. Bxc1 {[%clk 0:02:29.2]}
27... Nd7 {[%clk 0:02:00.8]} 28. Be3 {[%clk 0:02:28.2]} 28... Kf8 {[%clk
0:01:59.2]} 29. Nc3 {[%clk 0:02:27.6]} 29... Ke7 {[%clk 0:01:58.7]} 30. Na4
{[%clk 0:02:27.6]} 30... f5 {[%clk 0:01:46.1]} 31. gxf5 {[%clk 0:02:25]} 31...
gxf5 {[%clk 0:01:45.6]} 32. Bd2 {[%clk 0:02:24.8]} 32... fxe4 {[%clk 0:01:04.9]}
33. fxe4 {[%clk 0:02:23.4]} 33... b6 {[%clk 0:01:05.2]} 34. Be3 {[%clk
0:02:22.3]} 34... Nc5 {[%clk 0:01:04.8]} 35. Nxb6 {[%clk 0:02:16.1]} 35... Nxe4
{[%clk 0:01:02]} 36. Nc4 {[%clk 0:02:12.4]} 36... Nf6 {[%clk 0:00:53.2]} 37. Bg5
{[%clk 0:01:53.4]} 37... a4 {[%clk 0:00:47.5]} 38. b6 {[%clk 0:01:51]} 38... Kd7
{[%clk 0:00:46.2]} 39. Bxf6 {[%clk 0:01:46.1]} 39... Bxf6 {[%clk 0:00:45.2]} 40.
b7 {[%clk 0:01:46.2]} 40... Kc7 {[%clk 0:00:45]} 41. Nxd6 {[%clk 0:01:46.1]}
41... e4 {[%clk 0:00:34.2]} 42. Ne8+ {[%clk 0:01:39.8]} 42... Kxb7 {[%clk
0:00:32.8]} 43. Nxf6 {[%clk 0:01:39.7]} 43... Kb6 {[%clk 0:00:20]} 44. Kf2
{[%clk 0:01:36.7]} 44... Kc5 {[%clk 0:00:18.7]} 45. Ke3 {[%clk 0:01:35.3]} 45...
Kc4 {[%clk 0:00:16.9]} 46. d6 {[%clk 0:01:34.7]} 46... Kb3 {[%clk 0:00:17.5]}
47. Nxe4 {[%clk 0:01:34.4]} 47... Kxb2 {[%clk 0:00:18.4]} 48. d7 {[%clk
0:01:34.2]} 48... a3 {[%clk 0:00:18.7]} 49. d8=Q {[%clk 0:01:33.4]} 49... a2
{[%clk 0:00:15.2]} 50. Qb6+ {[%clk 0:01:32.7]} 50... Ka1 {[%clk 0:00:12.3]} 51.
Qd4+ {[%clk 0:01:27.5]} 51... Kb1 {[%clk 0:00:12.3]} 52. Nd2+ {[%clk 0:01:25.8]}
52... Kc2 {[%clk 0:00:12]} 53. Qa4+ {[%clk 0:01:21.4]} 53... Kb2 {[%clk
0:00:11.7]} 54. Nc4+ {[%clk 0:01:18.3]} 54... Kc1 {[%clk 0:00:00.8]} 55. Qxa2
{[%clk 0:01:15.9]} 1-0

[Event "Early-Titled-Tuesday-Blitz-May-28-2024"]
[Site "Chess.com"]
[Date "2024.05.28"]
[Round "7"]
[White "elcala"]
[Black "luca_va99"]
[Result "0-1"]
[WhiteElo "1995"]
[BlackElo "2213"]
[TimeControl "180+1"]
[EndTime "9:17:57 PDT"]
[Termination "luca_va99 won on time"]

1. d4 {[%clk 0:03:00.9]} 1... c5 {[%clk 0:02:55.9]} 2. e3 {[%clk 0:02:58]} 2...
g6 {[%clk 0:02:55.8]} 3. c3 {[%clk 0:02:57.3]} 3... Bg7 {[%clk 0:02:56.7]} 4.
Bd3 {[%clk 0:02:54.7]} 4... cxd4 {[%clk 0:02:55.5]} 5. exd4 {[%clk 0:02:52]}
5... d5 {[%clk 0:02:56.4]} 6. Nf3 {[%clk 0:02:49.7]} 6... Nc6 {[%clk 0:02:56.8]}
7. O-O {[%clk 0:02:48]} 7... Bg4 {[%clk 0:02:55.8]} 8. h3 {[%clk 0:02:45.3]}
8... Bxf3 {[%clk 0:02:56.1]} 9. Qxf3 {[%clk 0:02:42.7]} 9... Nf6 {[%clk
0:02:56.5]} 10. Bf4 {[%clk 0:02:36.8]} 10... O-O {[%clk 0:02:55.7]} 11. Nd2
{[%clk 0:02:35.7]} 11... Qb6 {[%clk 0:02:38.4]} 12. b3 {[%clk 0:02:31.4]} 12...
Nd7 {[%clk 0:02:30]} 13. Qe3 {[%clk 0:02:24.9]} 13... e6 {[%clk 0:02:25.2]} 14.
Bh6 {[%clk 0:02:21.2]} 14... e5 {[%clk 0:02:12.6]} 15. Bxg7 {[%clk 0:02:17.3]}
15... Kxg7 {[%clk 0:02:13.5]} 16. dxe5 {[%clk 0:01:54.9]} 16... Qxe3 {[%clk
0:02:13.3]} 17. fxe3 {[%clk 0:01:54.4]} 17... Ncxe5 {[%clk 0:02:13]} 18. Bb5
{[%clk 0:01:50.5]} 18... Rac8 {[%clk 0:02:09.2]} 19. Rac1 {[%clk 0:01:43.4]}
19... a6 {[%clk 0:02:08.5]} 20. Bxd7 {[%clk 0:01:40.3]} 20... Nxd7 {[%clk
0:02:09.4]} 21. Nf3 {[%clk 0:01:38]} 21... Rfe8 {[%clk 0:01:58.2]} 22. Kf2
{[%clk 0:01:33.6]} 22... Nf6 {[%clk 0:01:55.5]} 23. Nd2 {[%clk 0:01:20.4]} 23...
Rc7 {[%clk 0:01:49.6]} 24. Rc2 {[%clk 0:01:13.3]} 24... Rec8 {[%clk 0:01:46.2]}
25. Rfc1 {[%clk 0:01:09.8]} 25... b5 {[%clk 0:01:46]} 26. a3 {[%clk 0:01:03.4]}
26... Nd7 {[%clk 0:01:33.1]} 27. b4 {[%clk 0:00:56.8]} 27... Ne5 {[%clk
0:01:30.4]} 28. Ke2 {[%clk 0:00:50]} 28... f5 {[%clk 0:01:19.8]} 29. g3 {[%clk
0:00:28]} 29... Kf6 {[%clk 0:01:19.6]} 30. a4 {[%clk 0:00:23.2]} 30... h6 {[%clk
0:01:17.6]} 31. axb5 {[%clk 0:00:22]} 31... axb5 {[%clk 0:01:18.5]} 32. Nb1
{[%clk 0:00:16.2]} 32... Nc4 {[%clk 0:01:14.9]} 33. Rd1 {[%clk 0:00:13.4]} 33...
Ke5 {[%clk 0:01:13.5]} 34. Nd2 {[%clk 0:00:11]} 34... Na3 {[%clk 0:01:09.4]} 35.
Nf3+ {[%clk 0:00:07.1]} 35... Ke6 {[%clk 0:01:09]} 36. Nd4+ {[%clk 0:00:06.3]}
36... Ke5 {[%clk 0:00:59.9]} 37. Nf3+ {[%clk 0:00:04.6]} 37... Kd6 {[%clk
0:00:56.5]} 38. Rcd2 {[%clk 0:00:03.6]} 38... Rxc3 {[%clk 0:00:50.8]} 39. Rxd5+
{[%clk 0:00:03.1]} 39... Ke7 {[%clk 0:00:46.8]} 40. Rd7+ {[%clk 0:00:02]} 40...
Ke8 {[%clk 0:00:47.2]} 0-1

[Event "Early-Titled-Tuesday-Blitz-May-28-2024"]
[Site "Chess.com"]
[Date "2024.05.28"]
[Round "7"]
[White "maximnovik"]
[Black "Budag-Leyla"]
[Result "0-1"]
[WhiteElo "2532"]
[BlackElo "2214"]
[TimeControl "180+1"]
[EndTime "9:18:03 PDT"]
[Termination "Budag-Leyla won on time"]

1. e4 {[%clk 0:02:59.8]} 1... e6 {[%clk 0:03:00.6]} 2. d4 {[%clk 0:02:59.7]}
2... d5 {[%clk 0:03:01.2]} 3. e5 {[%clk 0:02:59.9]} 3... c5 {[%clk 0:03:00.8]}
4. c3 {[%clk 0:03:00.4]} 4... Nc6 {[%clk 0:03:01.1]} 5. Nf3 {[%clk 0:03:01.1]}
5... Qb6 {[%clk 0:02:59.5]} 6. Bd3 {[%clk 0:03:01]} 6... cxd4 {[%clk 0:02:59]}
7. O-O {[%clk 0:03:00.8]} 7... f6 {[%clk 0:02:55.5]} 8. cxd4 {[%clk 0:02:51.1]}
8... Bd7 {[%clk 0:02:55.4]} 9. Re1 {[%clk 0:02:45.1]} 9... f5 {[%clk 0:02:55.2]}
10. Nc3 {[%clk 0:02:36]} 10... Nxd4 {[%clk 0:02:50.3]} 11. Nxd4 {[%clk
0:02:28.4]} 11... Qxd4 {[%clk 0:02:50]} 12. Nb5 {[%clk 0:02:28.1]} 12... Qb6
{[%clk 0:02:48.1]} 13. Be3 {[%clk 0:02:27.9]} 13... Qa5 {[%clk 0:02:47.5]} 14.
Qb3 {[%clk 0:02:09.1]} 14... Bxb5 {[%clk 0:02:40.7]} 15. Bxb5+ {[%clk
0:02:07.7]} 15... Kf7 {[%clk 0:02:41.2]} 16. Rac1 {[%clk 0:02:00.6]} 16... Ne7
{[%clk 0:02:38.8]} 17. Red1 {[%clk 0:01:21.5]} 17... g6 {[%clk 0:02:37]} 18. Bd7
{[%clk 0:01:13.3]} 18... Rb8 {[%clk 0:02:31.3]} 19. Bg5 {[%clk 0:01:04.5]} 19...
Bg7 {[%clk 0:02:31.2]} 20. Bxe6+ {[%clk 0:00:42.2]} 20... Kxe6 {[%clk
0:02:29.8]} 21. Bxe7 {[%clk 0:00:42.2]} 21... Kxe7 {[%clk 0:02:22.7]} 22. Rxd5
{[%clk 0:00:42.1]} 22... Rhc8 {[%clk 0:01:55.9]} 23. Rcd1 {[%clk 0:00:41.2]}
23... Qc7 {[%clk 0:01:53.1]} 24. Qb4+ {[%clk 0:00:37.1]} 24... Ke8 {[%clk
0:01:52.2]} 25. Qa4+ {[%clk 0:00:30.2]} 25... Qc6 {[%clk 0:01:50.7]} 26. Qb3
{[%clk 0:00:19.3]} 26... Bf8 {[%clk 0:01:40.5]} 27. Rd6 {[%clk 0:00:18.8]} 27...
Bxd6 {[%clk 0:01:37.7]} 28. exd6 {[%clk 0:00:16.4]} 28... Kf8 {[%clk 0:01:31.6]}
29. d7 {[%clk 0:00:14.5]} 29... Rd8 {[%clk 0:01:31.8]} 30. Qd3 {[%clk
0:00:11.7]} 30... Qe6 {[%clk 0:01:29.3]} 31. h4 {[%clk 0:00:11.9]} 31... b6
{[%clk 0:01:29]} 32. Qd4 {[%clk 0:00:12.1]} 32... Kg8 {[%clk 0:01:26.9]} 33. Rd3
{[%clk 0:00:11.5]} 33... Rb7 {[%clk 0:01:26.3]} 34. Re3 {[%clk 0:00:11.6]} 34...
Rbxd7 {[%clk 0:01:23.6]} 35. Qc3 {[%clk 0:00:08.3]} 35... Qd6 {[%clk 0:01:14.3]}
36. Qb3+ {[%clk 0:00:07.8]} 36... Qd5 {[%clk 0:01:14.6]} 37. Qc3 {[%clk
0:00:06.9]} 37... Qd1+ {[%clk 0:01:10.9]} 38. Kh2 {[%clk 0:00:07]} 38... Qd4
{[%clk 0:01:08.7]} 39. Qb3+ {[%clk 0:00:07]} 39... Kg7 {[%clk 0:01:08.5]} 40. g3
{[%clk 0:00:07.2]} 40... f4 {[%clk 0:01:08.2]} 41. gxf4 {[%clk 0:00:06.8]} 41...
Qxf4+ {[%clk 0:01:08.4]} 42. Kg2 {[%clk 0:00:07.5]} 42... Rf7 {[%clk 0:01:08.1]}
43. Qc3+ {[%clk 0:00:06.9]} 43... Qf6 {[%clk 0:01:08.3]} 44. Qc2 {[%clk
0:00:06.5]} 44... Rdf8 {[%clk 0:01:08.3]} 45. f3 {[%clk 0:00:05.8]} 45... Qxh4
{[%clk 0:01:07.6]} 46. Re4 {[%clk 0:00:05.2]} 46... Qg5+ {[%clk 0:01:06.9]} 47.
Kh1 {[%clk 0:00:04.3]} 47... Rxf3 {[%clk 0:01:05]} 0-1

[Event "Early-Titled-Tuesday-Blitz-May-28-2024"]
[Site "Chess.com"]
[Date "2024.05.28"]
[Round "7"]
[White "Tagir45"]
[Black "NikFil2013"]
[Result "1-0"]
[WhiteElo "2640"]
[BlackElo "2467"]
[TimeControl "180+1"]
[EndTime "9:18:03 PDT"]
[Termination "Tagir45 won by checkmate"]

1. e4 {[%clk 0:02:54.8]} 1... c5 {[%clk 0:03:00]} 2. Nf3 {[%clk 0:02:54.2]} 2...
d6 {[%clk 0:03:00.3]} 3. d4 {[%clk 0:02:53.7]} 3... cxd4 {[%clk 0:03:01.2]} 4.
Nxd4 {[%clk 0:02:53.7]} 4... Nf6 {[%clk 0:03:01.7]} 5. Nc3 {[%clk 0:02:53.3]}
5... a6 {[%clk 0:03:02.1]} 6. Be2 {[%clk 0:02:53.3]} 6... e5 {[%clk 0:03:02.2]}
7. Nb3 {[%clk 0:02:53.2]} 7... Be7 {[%clk 0:03:02.8]} 8. O-O {[%clk 0:02:52.8]}
8... O-O {[%clk 0:03:02.8]} 9. Bf3 {[%clk 0:02:52.7]} 9... Nc6 {[%clk
0:03:02.2]} 10. Re1 {[%clk 0:02:51.5]} 10... b5 {[%clk 0:02:53.7]} 11. Be3
{[%clk 0:02:44.5]} 11... Be6 {[%clk 0:02:40]} 12. a4 {[%clk 0:02:42.5]} 12... b4
{[%clk 0:02:28.1]} 13. Nd5 {[%clk 0:02:41.9]} 13... Bxd5 {[%clk 0:02:28.3]} 14.
exd5 {[%clk 0:02:42]} 14... Na5 {[%clk 0:02:28.9]} 15. Be2 {[%clk 0:02:00.4]}
15... Nxb3 {[%clk 0:02:24.7]} 16. cxb3 {[%clk 0:02:00.3]} 16... Qa5 {[%clk
0:02:13.8]} 17. Bc4 {[%clk 0:01:54.2]} 17... Nd7 {[%clk 0:02:06.1]} 18. Qd3
{[%clk 0:01:48.9]} 18... Nb6 {[%clk 0:01:56]} 19. Rac1 {[%clk 0:01:46.3]} 19...
Rfc8 {[%clk 0:01:45.6]} 20. g3 {[%clk 0:01:26]} 20... g6 {[%clk 0:00:59.5]} 21.
h4 {[%clk 0:01:24.6]} 21... Nd7 {[%clk 0:00:48.2]} 22. h5 {[%clk 0:01:18.7]}
22... Nc5 {[%clk 0:00:39.5]} 23. Qe2 {[%clk 0:01:04.1]} 23... f5 {[%clk
0:00:18.2]} 24. Kg2 {[%clk 0:01:03.1]} 24... Kf7 {[%clk 0:00:16]} 25. Rh1 {[%clk
0:00:59.5]} 25... Rh8 {[%clk 0:00:14]} 26. Qf3 {[%clk 0:00:40.8]} 26... Ne4
{[%clk 0:00:03.3]} 27. g4 {[%clk 0:00:31.9]} 27... Ng5 {[%clk 0:00:03.4]} 28.
Bxg5 {[%clk 0:00:28.1]} 28... Bxg5 {[%clk 0:00:04.3]} 29. gxf5 {[%clk 0:00:27]}
29... Bxc1 {[%clk 0:00:01.8]} 30. fxg6+ {[%clk 0:00:26.7]} 30... Kg7 {[%clk
0:00:02.3]} 31. h6+ {[%clk 0:00:24.3]} 31... Kxg6 {[%clk 0:00:01]} 32. Bd3+
{[%clk 0:00:24.4]} 32... Kg5 {[%clk 0:00:01]} 33. Qf5# {[%clk 0:00:24.1]} 1-0

[Event "Early-Titled-Tuesday-Blitz-May-28-2024"]
[Site "Chess.com"]
[Date "2024.05.28"]
[Round "7"]
[White "HanSchut"]
[Black "kuchma777"]
[Result "0-1"]
[WhiteElo "2336"]
[BlackElo "2495"]
[TimeControl "180+1"]
[EndTime "9:18:04 PDT"]
[Termination "kuchma777 won by checkmate"]

1. e4 {[%clk 0:02:59.8]} 1... c6 {[%clk 0:02:59.6]} 2. d4 {[%clk 0:02:59.8]}
2... d5 {[%clk 0:03:00.5]} 3. e5 {[%clk 0:02:59.8]} 3... c5 {[%clk 0:03:00.7]}
4. dxc5 {[%clk 0:02:59.9]} 4... e6 {[%clk 0:03:00.9]} 5. a3 {[%clk 0:02:59.9]}
5... Bxc5 {[%clk 0:02:58.5]} 6. b4 {[%clk 0:03:00.5]} 6... Bb6 {[%clk
0:02:58.8]} 7. Qg4 {[%clk 0:03:00.4]} 7... Ne7 {[%clk 0:02:55.8]} 8. Nf3 {[%clk
0:02:59]} 8... Nbc6 {[%clk 0:02:51]} 9. Bd3 {[%clk 0:02:57.2]} 9... Ng6 {[%clk
0:02:50.4]} 10. Bb2 {[%clk 0:02:55.5]} 10... Bc7 {[%clk 0:02:44.4]} 11. Qg3
{[%clk 0:02:38]} 11... d4 {[%clk 0:02:38.5]} 12. Bxg6 {[%clk 0:01:46.4]} 12...
hxg6 {[%clk 0:02:39.4]} 13. O-O {[%clk 0:01:35.7]} 13... Qd5 {[%clk 0:02:30]}
14. Re1 {[%clk 0:01:35.6]} 14... Rh5 {[%clk 0:02:28.9]} 15. Nbd2 {[%clk
0:01:26.9]} 15... Nxe5 {[%clk 0:02:27.4]} 16. Nxd4 {[%clk 0:01:15.7]} 16... b6
{[%clk 0:01:50.1]} 17. c4 {[%clk 0:01:13.3]} 17... Nxc4 {[%clk 0:01:22.9]} 18.
Qxc7 {[%clk 0:01:14.2]} 18... Nxd2 {[%clk 0:01:09.1]} 19. Nc6 {[%clk 0:00:42]}
19... Bd7 {[%clk 0:01:00.2]} 20. Nb8 {[%clk 0:00:19.7]} 20... Nf3+ {[%clk
0:00:53.5]} 21. gxf3 {[%clk 0:00:11.4]} 21... Rg5+ {[%clk 0:00:53.8]} 22. Kf1
{[%clk 0:00:11]} 22... Bb5+ {[%clk 0:00:27.3]} 23. Re2 {[%clk 0:00:11.2]} 23...
Qxf3 {[%clk 0:00:20.5]} 24. Qc8+ {[%clk 0:00:06.9]} 24... Ke7 {[%clk 0:00:21.1]}
25. Qc7+ {[%clk 0:00:07.5]} 25... Ke8 {[%clk 0:00:19.2]} 26. Qc8+ {[%clk
0:00:07.9]} 26... Ke7 {[%clk 0:00:19.7]} 27. Qc7+ {[%clk 0:00:08.5]} 27... Kf8
{[%clk 0:00:08.2]} 28. Qd8+ {[%clk 0:00:07.1]} 28... Be8 {[%clk 0:00:08.8]} 29.
Nd7+ {[%clk 0:00:07.5]} 29... Kg8 {[%clk 0:00:07.9]} 30. Qe7 {[%clk 0:00:07.4]}
30... Qh1# {[%clk 0:00:07.3]} 0-1

[Event "Early-Titled-Tuesday-Blitz-May-28-2024"]
[Site "Chess.com"]
[Date "2024.05.28"]
[Round "7"]
[White "WolfBaoBaoLang"]
[Black "NikitaShnadrygin"]
[Result "1-0"]
[WhiteElo "2109"]
[BlackElo "2758"]
[TimeControl "180+1"]
[EndTime "9:18:06 PDT"]
[Termination "WolfBaoBaoLang won by resignation"]

1. e4 {[%clk 0:03:00.9]} 1... c5 {[%clk 0:03:00]} 2. Nf3 {[%clk 0:02:33.9]} 2...
e6 {[%clk 0:02:59.9]} 3. b3 {[%clk 0:02:33.7]} 3... Nc6 {[%clk 0:02:59.3]} 4.
Bb2 {[%clk 0:02:34.2]} 4... d5 {[%clk 0:02:58.8]} 5. exd5 {[%clk 0:02:34]} 5...
exd5 {[%clk 0:02:59.7]} 6. Bb5 {[%clk 0:02:34.5]} 6... Ne7 {[%clk 0:02:58.7]} 7.
O-O {[%clk 0:02:33.7]} 7... a6 {[%clk 0:02:59.2]} 8. Bxc6+ {[%clk 0:02:33.4]}
8... Nxc6 {[%clk 0:03:00.1]} 9. d4 {[%clk 0:02:33.8]} 9... Be7 {[%clk
0:02:51.6]} 10. dxc5 {[%clk 0:02:32.3]} 10... O-O {[%clk 0:02:52.2]} 11. Nc3
{[%clk 0:02:29.7]} 11... Be6 {[%clk 0:02:51.5]} 12. Na4 {[%clk 0:02:29.6]} 12...
Bg4 {[%clk 0:02:32.4]} 13. Qd3 {[%clk 0:02:25.1]} 13... Bf6 {[%clk 0:02:25.7]}
14. h3 {[%clk 0:02:15.9]} 14... Bh5 {[%clk 0:02:22.4]} 15. Nd4 {[%clk
0:02:12.3]} 15... Bg6 {[%clk 0:02:16.2]} 16. Qd2 {[%clk 0:01:59.1]} 16... Rc8
{[%clk 0:01:55.8]} 17. Nxc6 {[%clk 0:01:21.7]} 17... bxc6 {[%clk 0:01:53.1]} 18.
Bxf6 {[%clk 0:01:08.8]} 18... Qxf6 {[%clk 0:01:52.6]} 19. Rac1 {[%clk
0:00:54.9]} 19... Rce8 {[%clk 0:01:48.4]} 20. Rfe1 {[%clk 0:00:53.7]} 20... Be4
{[%clk 0:01:44.5]} 21. Nc3 {[%clk 0:00:27.9]} 21... Bg6 {[%clk 0:01:42.2]} 22.
Ne2 {[%clk 0:00:27.8]} 22... Re5 {[%clk 0:01:25]} 23. Nd4 {[%clk 0:00:27.3]}
23... Re4 {[%clk 0:01:19.3]} 24. Rxe4 {[%clk 0:00:26.8]} 24... Bxe4 {[%clk
0:01:16.4]} 25. f3 {[%clk 0:00:26.5]} 25... Bg6 {[%clk 0:01:16.6]} 26. c3 {[%clk
0:00:27.1]} 26... a5 {[%clk 0:01:16.3]} 27. Re1 {[%clk 0:00:27.4]} 27... h6
{[%clk 0:01:15.9]} 28. a3 {[%clk 0:00:27]} 28... Rb8 {[%clk 0:01:14.9]} 29. b4
{[%clk 0:00:27.1]} 29... axb4 {[%clk 0:01:14.9]} 30. cxb4 {[%clk 0:00:26.3]}
30... Ra8 {[%clk 0:01:13.5]} 31. Qc3 {[%clk 0:00:26.4]} 31... Kh7 {[%clk
0:01:09.7]} 32. Kh1 {[%clk 0:00:25.9]} 32... Qh4 {[%clk 0:01:03.9]} 33. Ra1
{[%clk 0:00:26.1]} 33... Ra6 {[%clk 0:00:59.5]} 34. a4 {[%clk 0:00:26.2]} 34...
Qf4 {[%clk 0:00:53.6]} 35. b5 {[%clk 0:00:26.1]} 35... cxb5 {[%clk 0:00:54.5]}
36. axb5 {[%clk 0:00:26.6]} 36... Rf6 {[%clk 0:00:45.1]} 37. b6 {[%clk
0:00:26.3]} 37... Qg3 {[%clk 0:00:37.4]} 38. b7 {[%clk 0:00:25.1]} 38... Bh5
{[%clk 0:00:36.7]} 39. c6 {[%clk 0:00:23.9]} 39... Bg4 {[%clk 0:00:22]} 40. hxg4
{[%clk 0:00:21.1]} 40... h5 {[%clk 0:00:22.5]} 41. Nf5 {[%clk 0:00:18.4]} 1-0